bitfinex-derivatives/quotes_ETHF0:USTF0_20240917
["timestamp","ask_amount","ask_price","bid_price","bid_amount"]
[1726597277823,3.2078,2360.6,2360.5,3.63133]
[1726597278008,4.84867058,2360.6,2360.5,3.63133]
[1726597279620,2.18814786,2360.7,2360.5,4.26663]
[1726597279621,1.09459171,2360.7,2360.5,4.26663]
[1726597279919,1.09459171,2360.7,2360.6,4.03631]
[1726597280104,1.09459171,2360.8,2360.6,3.6128]
[1726597280308,1.09459171,2360.8,2360.7,3.63129]
[1726597280512,2.73546229,2360.8,2360.7,3.63129]
[1726597280709,1.09511332,2360.8,2360.7,3.63129]
[1726597280909,1.09511332,2360.8,2360.7,4.69003]
[1726597280910,1.64087058,2360.8,2360.7,4.69003]
[1726597281119,1.09511518,2360.8,2360.7,4.69003]
[1726597281329,4.30291518,2360.9,2360.8,0.42347]
[1726597281517,4.30291518,2360.9,2360.7,4.26654]
[1726597281518,4.84867058,2360.9,2360.6,1.2433]
[1726597281711,1.64266388,2360.7,2360.6,3.6313]
[1726597281910,0.42349,2360.7,2360.6,3.2078]
[1726597282318,3.72233087,2360.7,2360.6,3.2078]
[1726597282513,3.84864768,2360.8,2360.6,3.63131]
[1726597282514,3.72233087,2360.8,2360.6,3.63131]
[1726597282719,0.42349,2360.7,2360.6,3.2078]
[1726597282911,3.72232087,2360.8,2360.6,3.6313]
[1726597283324,3.29884087,2360.8,2360.7,0.42349]
[1726597283519,3.29884087,2360.8,2360.6,3.6313]
[1726597283520,3.72232087,2360.8,2360.6,3.6313]
[1726597284320,3.29884087,2360.8,2360.6,3.2078]
[1726597284525,3.29884087,2360.8,2360.6,3.6313]
[1726597284526,0.42348,2360.8,2360.6,3.6313]
[1726597284824,0.42348,2360.8,2360.6,3.2078]
[1726597285124,0.42347,2360.8,2360.6,3.63131]
[1726597285312,3.72231087,2360.8,2360.6,3.63131]
[1726597285513,0.42349,2360.7,2360.6,3.63131]
[1726597285716,3.72233087,2360.8,2360.6,3.63131]
[1726597286017,3.72233087,2360.8,2360.6,3.2078]
[1726597286216,3.72233087,2360.8,2360.6,3.6313]
[1726597286620,3.72233087,2360.8,2360.7,0.42349]
[1726597287317,3.29884087,2360.8,2360.7,0.42349]
[1726597287517,0.42347,2360.8,2360.7,0.42349]
[1726597287716,6.50664087,2360.9,2360.4,1.05887]
[1726597287922,6.50664087,2360.9,2360.8,3.63127]
[1726597288123,3.2078,2360.9,2360.8,5.74865]
[1726597288321,5.94363248,2360.9,2360.8,5.74865]
[1726597288842,5.94363248,2360.9,2360.8,3.63127]
[1726597289223,5.94363248,2360.9,2360.8,4.43627]
[1726597290219,3.2078,2360.9,2360.8,4.43627]
[1726597291225,5.27246715,2360.9,2360.6,0.42349]
[1726597291416,5.27246715,2360.9,2360.6,3.2078]
[1726597291417,1.09392891,2360.7,2360.6,3.2078]
[1726597291621,1.09392891,2360.7,2360.6,3.63131]
[1726597291923,1.09393391,2360.8,2360.6,3.6313]
[1726597292330,1.09393391,2360.8,2360.7,0.42349]
[1726597292820,1.09393391,2360.8,2360.7,3.63129]
[1726597293321,4.30173391,2360.9,2360.8,0.42347]
[1726597293520,4.30173391,2360.9,2360.8,3.63127]
[1726597293927,3.2078,2360.9,2360.8,3.63127]
[1726597294426,3.2078,2360.9,2360.8,4.04237]
[1726597294819,3.2078,2360.9,2360.8,5.50436]
[1726597295015,2.5631,2360.9,2360.8,5.50436]
[1726597296633,1.9183,2360.9,2360.8,6.56305]
[1726597297025,4.30173391,2361.1,2361.0,0.42344]
[1726597297224,5.3960762,2361.1,2361.0,3.63124]
[1726597298025,2.1882762,2361.1,2361.0,8.54064]
[1726597298231,1.63982439,2361.3,2361.2,0.4234]
[1726597298450,3.2078,2361.7,2361.5,0.42334]
[1726597298935,4.12411087,2362.0,2361.2,5.11851]
[1726597298936,0.402,2362.0,2361.6,0.42333]
[1726597299240,0.402,2362.0,2361.5,0.42334]
[1726597299425,0.82526,2362.0,2361.5,0.42334]
[1726597299622,3.2078,2361.8,2361.6,0.42333]
[1726597299826,3.2078,2361.8,2361.7,0.42331]
[1726597300033,3.2078,2361.8,2361.4,0.20683868]
[1726597300237,3.2078,2361.8,2361.7,0.42331]
[1726597300426,3.2078,2361.8,2361.7,4.65771]
[1726597300622,3.2078,2362.1,2361.7,10.2344]
[1726597300835,3.2078,2362.1,2362.0,0.42326]
[1726597301041,3.2078,2362.1,2361.8,4.06]
[1726597301227,3.2078,2362.1,2361.7,0.4233]
[1726597301626,3.2078,2362.1,2361.8,0.42329]
[1726597303029,3.2078,2362.1,2361.7,0.4233]
[1726597303232,1.48173,2361.5,2361.4,0.33185779]
[1726597303530,1.05851,2361.3,2360.5,1.67245551]
[1726597303726,3.2078,2361.2,2360.3,3.2078]
[1726597303928,3.2078,2361.2,2360.6,0.4235]
[1726597304128,0.42344,2361.0,2360.6,0.4235]
[1726597304327,0.42345,2361.0,2360.6,0.42351]
[1726597304530,0.42342,2361.1,2360.6,0.4235]
[1726597304726,0.42342,2361.1,2360.3,3.42025762]
[1726597304933,3.2078,2361.2,2360.3,3.42025762]
[1726597305135,1.2427,2361.4,2361.1,0.42341]
[1726597305535,1.66607,2361.4,2361.0,0.42343]
[1726597305729,1.2427,2361.4,2361.1,0.42342]
[1726597305935,1.2427,2361.4,2360.8,1.47928]
[1726597306133,3.2078,2361.5,2361.0,5.11859]
[1726597306335,3.2078,2361.9,2361.0,5.11859]
[1726597306535,3.2078,2361.9,2361.6,0.42332]
[1726597307135,3.2078,2361.9,2361.3,0.42338]
[1726597307340,3.2078,2361.9,2361.2,4.2663]
[1726597307536,3.63108,2361.9,2361.6,0.42332]
[1726597308141,3.2078,2361.9,2361.6,0.42332]
[1726597308339,3.2078,2361.9,2361.7,0.42331]
[1726597308643,0.42336,2361.5,2360.7,0.42349]
[1726597308843,3.63126,2361.0,2360.6,0.4235]
[1726597309141,3.63126,2361.0,2360.3,0.42356]
[1726597309142,3.63131,2360.7,2360.3,0.42356]
[1726597309446,3.6313,2360.7,2360.3,0.42356]
[1726597309840,3.2078,2360.7,2360.2,0.4211]
[1726597310042,0.42359,2360.2,2359.8,0.75714373]
[1726597310242,3.2078,2360.2,2359.8,0.33349373]
[1726597310439,3.63139,2360.2,2359.8,0.42364]
[1726597310637,3.63139,2360.2,2359.7,3.54354656]
[1726597310842,3.63139,2360.2,2359.8,0.42365]
[1726597311045,3.2078,2360.2,2359.8,0.42365]
[1726597311355,3.6314,2360.2,2359.8,0.42365]
[1726597311748,3.6314,2360.2,2359.7,3.54354656]
[1726597311749,3.2078,2360.2,2359.7,3.54354656]
[1726597311953,0.42361,2360.1,2359.7,3.96721656]
[1726597312447,3.6314,2360.2,2359.8,0.42365]
[1726597312651,3.63139,2360.2,2359.8,0.42365]
[1726597312948,3.2078,2361.0,2360.2,1.05896]
[1726597313148,3.2078,2361.0,2360.5,0.42353]
[1726597313347,2.29538,2361.1,2360.4,0.42353]
[1726597313348,0.42348,2360.8,2360.4,0.42353]
[1726597313553,0.42348,2360.8,2360.5,0.42353]
[1726597313554,3.63128,2360.8,2360.5,0.42353]
[1726597313747,3.63128,2360.8,2360.4,0.42353]
[1726597313947,3.2078,2360.8,2360.1,1.05901]
[1726597314147,3.2078,2360.8,2360.5,0.42352]
[1726597314456,3.2078,2360.8,2360.6,0.42351]
[1726597314950,3.2078,2360.8,2360.5,0.42352]
[1726597315545,3.2078,2360.8,2360.6,0.42351]
[1726597315742,3.2078,2360.8,2360.2,1.05896]
[1726597316251,3.2078,2360.8,2360.6,0.4235]
[1726597317442,3.2078,2360.8,2360.7,0.42349]
[1726597318246,3.2078,2360.8,2360.2,1.05896]
[1726597318247,5.50318,2361.1,2360.2,1.05896]
[1726597318441,3.2078,2360.8,2360.6,0.4235]
[1726597318941,3.2078,2360.8,2360.7,0.42349]
[1726597319348,3.2078,2360.8,2360.3,1.05892]
[1726597319554,3.2078,2360.8,2360.6,0.42349]
[1726597319953,3.63128,2360.8,2360.5,0.42352]
[1726597320145,3.63128,2360.8,2360.2,1.05896]
[1726597320346,0.42349,2360.7,2360.4,0.42353]
[1726597320552,0.42349,2360.7,2360.0,5.02421996]
[1726597320553,0.4125,2360.6,2360.3,0.42355]
[1726597320745,3.2078,2360.5,2360.0,4.26683]
[1726597320947,3.2078,2360.5,2360.4,0.42355]
[1726597321152,3.2078,2360.5,2360.0,3.2078]
[1726597321455,0.8266,2360.4,2360.3,0.42356]
[1726597322347,0.4186,2360.4,2360.3,0.42356]
[1726597324357,3.6203,2360.6,2360.5,0.42353]
[1726597324559,2.73652689,2360.9,2360.7,0.42349]
[1726597324560,0.4152,2360.8,2360.7,0.42349]
[1726597327456,3.2078,2360.9,2360.8,1.48216]
[1726597327756,3.2078,2360.9,2360.8,5.71816]
[1726597328760,3.2078,2360.9,2360.8,4.65947]
[1726597329262,3.2078,2360.9,2360.8,0.42347]
[1726597330755,3.63126,2360.9,2360.5,1.46022]
[1726597330960,3.2078,2360.6,2360.5,0.42352]
[1726597331165,3.2078,2360.6,2360.5,0.42353]
[1726597331352,3.5964,2360.6,2360.5,0.42353]
[1726597332264,3.01723426,2360.8,2360.7,0.42349]
[1726597332462,0.8276,2360.8,2360.7,0.42349]
[1726597333659,5.0636,2360.8,2360.2,4.66215]
[1726597333960,5.0636,2360.8,2360.0,0.74092261]
[1726597333961,3.2078,2360.6,2359.9,3.15474551]
[1726597334159,0.42353,2360.5,2360.3,0.42355]
[1726597334357,0.3993,2360.4,2360.3,0.42355]
[1726597334659,0.3993,2360.4,2360.3,0.42356]
[1726597334853,0.3993,2360.4,2359.9,3.15474551]
[1726597335054,0.3993,2360.4,2360.1,0.42359]
[1726597335055,3.2078,2360.2,2360.1,0.42359]
[1726597338668,7.4446,2360.2,2360.1,0.4236]
[1726597338868,3.2078,2360.2,2360.1,0.4236]
[1726597339357,2.59363426,2360.3,2360.2,0.42358]
[1726597339558,2.58893426,2360.4,2360.3,0.42356]
[1726597339762,2.18963426,2360.6,2360.5,0.42353]
[1726597340061,6.60143426,2360.8,2360.7,0.42349]
[1726597340369,4.4118,2360.8,2360.7,0.42349]
[1726597340753,6.60143426,2360.8,2360.7,0.42349]
[1726597341158,4.4118,2360.8,2360.7,0.42349]
[1726597342659,3.6064,2360.8,2360.7,0.42349]
[1726597342865,5.72416115,2361.2,2360.8,1.05869]
[1726597343057,2.98763426,2361.2,2361.1,0.42342]
[1726597343364,0.798,2361.2,2361.1,0.42342]
[1726597344766,2.18963426,2361.4,2361.3,0.42338]
[1726597345076,2.18963426,2361.7,2361.6,0.42333]
[1726597345367,6.64403426,2361.8,2361.7,0.42331]
[1726597345768,4.4544,2361.8,2361.7,0.42331]
[1726597346860,4.4544,2361.8,2361.2,4.69069]
[1726597346861,4.8777,2361.8,2361.5,0.42333]
[1726597347064,0.42333,2361.7,2361.4,0.42336]
[1726597347269,3.2078,2361.6,2361.1,1.67245551]
[1726597347460,3.63112,2361.7,2361.4,0.42335]
[1726597347862,3.63112,2361.7,2361.5,0.42335]
[1726597348068,3.2078,2361.7,2361.1,1.67245551]
[1726597348366,3.2078,2361.4,2361.3,0.42338]
[1726597349057,3.63117,2361.4,2361.3,0.42338]
[1726597349261,5.39743426,2361.4,2361.3,0.42338]
[1726597350869,16.17952689,2361.4,2360.8,1.05869]
[1726597351173,2.19039173,2361.2,2361.1,0.42342]
[1726597351560,6.82449173,2361.2,2361.1,0.42342]
[1726597352067,0.3989,2361.2,2361.1,0.42342]
[1726597352262,6.82449173,2361.2,2360.6,1.05878]
[1726597352465,3.2078,2361.0,2360.5,3.52968551]
[1726597352664,0.42346,2360.9,2360.8,0.42346]
[1726597352864,3.2078,2361.0,2360.9,0.42346]
[1726597352865,5.82164173,2361.0,2360.9,0.42346]
[1726597353264,10.05684173,2361.0,2360.9,0.42346]
[1726597353773,9.63339173,2361.0,2360.9,0.42346]
[1726597353965,9.63503195,2361.0,2360.9,0.42346]
[1726597354266,10.17952689,2361.0,2360.9,0.42346]
[1726597354467,3.2078,2361.0,2360.9,0.42346]
[1726597354666,5.40132293,2361.0,2360.9,0.42346]
[1726597355074,2.73652689,2361.1,2361.0,0.42344]
[1726597355270,2.59227115,2361.2,2361.1,0.42342]
[1726597355789,0.3989,2361.2,2361.1,0.42342]
[1726597356764,2.19337115,2361.4,2361.3,0.42338]
[1726597357470,3.15987689,2361.5,2361.4,0.42337]
[1726597358473,3.16533086,2361.5,2361.4,0.42336]
[1726597358873,3.16520907,2361.5,2361.4,0.42336]
[1726597359064,2.74184907,2361.5,2361.4,0.42336]
[1726597359265,4.0071,2361.6,2361.4,5.29282]
[1726597359266,2.19339512,2361.6,2361.4,5.29282]
[1726597359473,2.19339512,2361.6,2361.4,1.48179]
[1726597359474,1.64513951,2361.5,2361.4,1.48179]
[1726597359672,1.64513951,2361.5,2361.4,0.83067]
[1726597359882,2.19339512,2361.7,2361.4,4.6417]
[1726597360076,1.64514149,2361.5,2361.4,1.88909]
[1726597361068,1.64514149,2361.6,2361.5,0.42335]
[1726597361463,4.85294149,2361.6,2361.5,0.42335]
[1726597361660,3.2078,2361.6,2361.2,1.0585]
[1726597361870,3.2078,2361.6,2361.5,0.42333]
[1726597361871,1.64432342,2361.6,2361.5,0.42333]
[1726597363764,1.64432342,2361.6,2361.2,4.2663]
[1726597364074,4.85212342,2361.6,2361.5,0.42335]
[1726597364273,1.64432342,2361.6,2361.5,0.42335]
[1726597364475,1.64432342,2361.7,2361.6,0.42333]
[1726597370377,0.42333,2361.6,2361.5,0.42333]
[1726597370577,2.06765342,2361.6,2361.5,0.42333]
[1726597370769,1.64432342,2361.6,2361.5,0.42333]
[1726597370969,5.27544342,2361.7,2361.6,0.42333]
[1726597372273,3.63112,2361.7,2361.6,0.42333]
[1726597372473,5.82451512,2361.7,2361.6,0.42333]
[1726597372674,0.42334,2361.6,2361.5,0.42334]
[1726597372876,2.06681372,2361.6,2361.5,0.42334]
[1726597373079,1.64347372,2361.6,2361.5,0.42334]
[1726597375877,5.27459372,2361.7,2361.6,0.42333]
[1726597376180,3.63112,2361.7,2361.6,0.42333]
[1726597376881,0.42332,2361.7,2361.6,0.42333]
[1726597377091,5.2736606,2361.7,2361.6,0.42333]
[1726597377277,3.63112,2361.7,2361.6,0.42333]
[1726597379189,5.82451512,2361.7,2361.6,0.42333]
[1726597379580,3.63112,2361.7,2361.6,0.42333]
[1726597380086,5.27378645,2361.7,2361.6,0.42333]
[1726597380282,3.63112,2361.7,2361.6,0.42333]
[1726597380484,3.2078,2361.7,2361.6,0.42333]
[1726597380680,4.85061261,2361.7,2361.6,0.42333]
[1726597380885,4.85060543,2361.7,2361.6,0.42333]
[1726597381177,5.40119512,2361.7,2361.6,0.42333]
[1726597381382,3.2078,2361.7,2361.6,1.48166]
[1726597381577,2.19339512,2361.8,2361.7,0.42331]
[1726597382287,0.42328,2361.9,2361.8,0.4233]
[1726597382681,0.4233,2361.8,2361.7,0.4233]
[1726597382885,2.19184599,2361.8,2361.7,0.4233]
[1726597384389,2.19184599,2361.8,2361.6,1.89393]
[1726597384390,3.16513907,2361.9,2361.8,0.4233]
[1726597385288,0.42329,2361.9,2361.8,0.4233]
[1726597386398,4.0443,2362.0,2361.9,0.42328]
[1726597386587,4.46756,2362.0,2361.9,0.42328]
[1726597387485,0.42331,2361.8,2361.7,0.4233]
[1726597391596,0.42333,2361.7,2361.3,3.55782551]
[1726597391790,3.1674842,2361.5,2361.4,0.42337]
[1726597391995,3.2078,2361.5,2361.4,0.42337]
[1726597392191,4.0265,2361.5,2361.3,0.85117]
[1726597392395,2.74395107,2361.4,2361.3,0.85118]
[1726597393095,4.44986,2361.5,2361.4,0.42337]
[1726597394000,4.0265,2361.5,2361.4,0.42337]
[1726597394384,3.56271792,2361.5,2361.4,0.42337]
[1726597394601,3.56274733,2361.5,2361.4,0.42337]
[1726597395394,3.14204733,2361.5,2361.4,0.42337]
[1726597395893,0.398,2361.5,2361.4,0.42337]
[1726597396098,3.14204733,2361.5,2361.4,0.42337]
[1726597396394,0.42333,2361.7,2361.5,0.42335]
[1726597396603,0.42333,2361.7,2361.6,0.42333]
[1726597397285,0.42334,2361.6,2361.5,0.42335]
[1726597397690,0.42334,2361.6,2361.3,0.4278]
[1726597397691,1.0583,2361.7,2361.3,0.4278]
[1726597397900,2.74502485,2361.4,2361.3,0.85118]
[1726597399795,2.74502485,2361.4,2361.3,1.39322851]
[1726597400001,2.74502485,2361.4,2361.3,1.39322769]
[1726597400600,3.70568745,2361.6,2361.5,0.42335]
[1726597400792,3.70568745,2361.6,2361.4,0.42335]
[1726597400998,3.28234745,2361.6,2361.3,0.4278]
[1726597401193,6.91350745,2361.5,2361.4,0.42337]
[1726597401394,0.42342,2361.1,2361.0,0.81912]
[1726597401602,1.48198,2361.1,2361.0,0.54211166]
[1726597401791,7.1456919,2361.1,2360.8,0.4078]
[1726597401997,7.1456919,2361.1,2360.9,0.42345]
[1726597401998,3.29647541,2361.0,2360.9,0.42345]
[1726597402395,3.29647541,2361.1,2361.0,0.42344]
[1726597402598,3.71990541,2361.1,2360.9,0.42345]
[1726597402802,0.42344,2361.0,2360.8,0.83126]
[1726597402997,0.42344,2361.0,2360.8,0.4078]
[1726597403204,3.2078,2360.9,2360.4,4.97245551]
[1726597403500,2.74484545,2360.7,2360.6,0.4235]
[1726597404108,4.0305,2360.9,2360.7,0.42349]
[1726597404293,7.75043541,2360.9,2360.7,0.42349]
[1726597404493,4.45396,2360.9,2360.7,0.42349]
[1726597405509,4.45396,2360.9,2360.4,4.35886]
[1726597405510,4.0305,2360.9,2360.8,0.42347]
[1726597405694,3.6294,2360.9,2360.8,0.42347]
[1726597406004,4.05286,2360.9,2360.7,0.42348]
[1726597406203,2.74219844,2360.8,2360.7,0.42348]
[1726597406405,2.74219844,2360.8,2360.4,3.3]
[1726597406595,2.19305964,2360.5,2360.3,0.4078]
[1726597406792,2.19305964,2360.5,2360.4,0.42355]
[1726597407193,2.19305964,2360.6,2360.5,0.42353]
[1726597407502,2.19305964,2360.6,2360.4,0.42355]
[1726597407697,2.19305964,2360.6,2360.3,0.4078]
[1726597407899,2.19305964,2360.5,2360.4,0.42353]
[1726597408401,5.40085964,2360.6,2360.3,0.4078]
[1726597408603,5.40085964,2360.6,2360.1,0.4236]
[1726597408604,0.42357,2360.3,2360.1,0.4236]
[1726597408905,1.64356023,2360.2,2360.0,3.3]
[1726597409100,2.19142342,2360.3,2360.2,0.42358]
[1726597409404,1.64291885,2360.4,2360.3,0.42356]
[1726597409910,1.64291885,2360.4,2360.3,1.23926]
[1726597410400,2.61493342,2360.6,2360.3,0.8157]
[1726597410593,2.61494342,2360.6,2360.4,0.42355]
[1726597411194,2.19142342,2360.5,2360.4,0.42355]
[1726597411399,0.42352,2360.6,2360.3,0.8157]
[1726597411400,2.61494342,2360.6,2360.3,0.8157]
[1726597411612,2.61494342,2360.6,2360.4,0.42354]
[1726597411808,1.64226603,2360.5,2360.4,0.42354]
[1726597412008,2.61494342,2360.6,2360.4,0.42354]
[1726597412203,1.6422657,2360.5,2360.4,0.42354]
[1726597412406,1.6418476,2360.5,2360.4,0.42354]
[1726597412708,2.61494342,2360.6,2360.4,0.42355]
[1726597412910,1.64182153,2360.5,2360.4,0.42355]
[1726597413108,1.64182153,2360.5,2360.4,3.72355]
[1726597413299,1.64182153,2360.6,2360.5,0.42353]
[1726597414302,1.64182153,2360.7,2360.6,0.42351]
[1726597414505,0.7831,2360.8,2360.7,0.42349]
[1726597415105,3.04308342,2360.9,2360.8,0.42347]
[1726597415106,2.19142342,2360.9,2360.8,0.42347]
[1726597415315,1.6418228,2360.9,2360.6,3.3]
[1726597415512,1.6418228,2360.9,2360.8,0.42347]
[1726597415707,1.6418228,2360.9,2360.6,3.3]
[1726597416013,5.2730628,2361.0,2360.8,0.42346]
[1726597416712,4.8496228,2361.0,2360.9,0.42346]
[1726597416914,1.6418228,2361.0,2360.9,0.42346]
[1726597417208,1.6423792,2361.0,2360.9,0.42346]
[1726597417909,4.8501792,2361.0,2360.9,0.42346]
[1726597419115,5.39922342,2361.0,2360.9,0.42346]
[1726597420608,3.63124,2361.0,2360.9,0.42346]
[1726597420813,5.82266342,2361.0,2360.9,0.42346]
[1726597421905,5.39922342,2361.0,2360.9,0.42346]
[1726597422111,3.2078,2361.0,2360.9,0.42346]
[1726597423024,2.61485342,2361.1,2361.0,0.42344]
[1726597423025,2.19142342,2361.1,2361.0,0.42344]
[1726597423211,3.98821844,2361.2,2361.1,0.42342]
[1726597423212,3.43743342,2361.2,2361.1,0.42342]
[1726597423411,3.01402342,2361.2,2361.1,0.42342]
[1726597424813,5.39922342,2361.3,2361.2,0.4234]
[1726597425911,2.19142342,2361.4,2361.3,0.42338]
[1726597426325,3.01942342,2361.5,2361.4,0.42337]
[1726597426523,1.64342765,2361.5,2361.4,3.63117]
[1726597426721,1.64342765,2361.6,2361.5,0.42335]
[1726597426924,2.19142342,2361.7,2361.6,0.42333]
[1726597426925,1.64342765,2361.7,2361.6,0.42333]
[1726597427128,2.19142342,2361.8,2361.5,3.3]
[1726597427420,6.76429844,2361.9,2361.7,3.3]
[1726597427421,4.85109196,2361.9,2361.7,3.3]
[1726597427630,3.2078,2361.9,2361.8,0.8184]
[1726597427830,3.2078,2361.9,2361.8,5.4657]
[1726597428532,1.64329196,2362.1,2362.0,0.42326]
[1726597429335,1.64329196,2362.2,2362.1,0.42324]
[1726597429528,1.64307461,2362.2,2362.1,0.42324]
[1726597430126,1.64307461,2362.2,2362.0,0.42325]
[1726597430430,1.64307461,2362.2,2362.1,0.42324]
[1726597431231,2.03097461,2362.5,2362.1,7.5336]
[1726597431434,2.03097461,2362.5,2362.4,3.72319]
[1726597432232,2.03097461,2362.5,2362.4,0.42319]
[1726597433031,0.3879,2362.5,2362.4,0.42319]
[1726597433534,1.64307461,2362.6,2362.5,0.42317]
[1726597433738,1.64307461,2362.7,2362.6,0.42315]
[1726597434541,5.68229461,2362.8,2362.6,0.42315]
[1726597435240,5.25917461,2362.8,2362.3,0.8193]
[1726597435444,5.68230461,2362.8,2362.6,0.42315]
[1726597435938,5.68230461,2362.8,2362.7,0.42313]
[1726597436337,5.68230461,2362.8,2362.6,0.42314]
[1726597437236,0.42313,2362.7,2362.6,0.42314]
[1726597438140,5.25917461,2362.8,2362.3,1.87731]
[1726597438437,3.63098,2362.5,2362.4,0.42318]
[1726597440039,3.2078,2362.5,2362.4,0.42318]
[1726597440245,3.63097,2362.5,2362.3,0.4235]
[1726597440438,4.04417,2362.5,2362.3,0.4235]
[1726597440743,3.621,2362.5,2362.4,0.42318]
[1726597441042,4.04417,2362.5,2362.4,0.42318]
[1726597441241,0.4232,2362.4,2362.0,9.23838551]
[1726597441441,3.621,2362.5,2362.4,0.42319]
[1726597441442,4.04418,2362.5,2362.4,0.42319]
[1726597441836,4.04418,2362.5,2362.0,4.35813]
[1726597441837,0.4232,2362.4,2362.3,0.4232]
[1726597442036,3.621,2362.5,2362.4,0.42319]
[1726597442037,4.04418,2362.5,2362.4,0.42319]
[1726597442637,4.04417,2362.5,2362.4,0.42319]
[1726597443538,0.83637,2362.5,2362.4,0.42319]
[1726597443738,0.4132,2362.5,2362.4,0.42319]
[1726597443937,0.4132,2362.5,2362.4,4.78117]
[1726597444140,3.6161,2362.8,2362.7,0.42313]
[1726597445033,0.4083,2362.8,2362.7,0.42313]
[1726597445235,1.64307461,2363.1,2363.0,0.42308]
[1726597445439,4.0571,2363.4,2363.0,3.3]
[1726597445631,0.424,2363.4,2363.3,3.72303]
[1726597446035,3.6331,2363.7,2363.6,0.42297]
[1726597446244,3.6331,2363.7,2363.5,3.3]
[1726597446639,3.6331,2363.7,2363.6,0.42297]
[1726597446839,3.6331,2363.7,2363.5,3.72298]
[1726597447246,3.6331,2363.7,2363.5,0.42299]
[1726597448245,3.6331,2363.7,2363.3,3.3]
[1726597448246,3.6331,2363.7,2363.6,0.42297]
[1726597449437,4.05606,2363.7,2363.5,0.42298]
[1726597449647,3.6331,2363.7,2363.1,0.4101]
[1726597449846,3.6331,2363.7,2363.2,0.42303]
[1726597449847,0.423,2363.5,2363.2,0.42303]
[1726597450348,0.423,2363.5,2363.3,0.42303]
[1726597450745,0.423,2363.5,2363.2,0.42303]
[1726597450950,3.2078,2363.3,2363.2,0.42303]
[1726597451159,0.423,2363.5,2363.3,0.42302]
[1726597453647,0.423,2363.5,2362.5,1.05791]
[1726597453648,4.2312,2363.4,2362.5,1.05791]
[1726597453845,3.2078,2363.0,2362.9,0.4231]
[1726597456250,0.4071,2363.1,2363.0,0.42308]
[1726597456447,3.2078,2363.3,2363.2,0.42304]
[1726597456645,3.2078,2363.3,2363.1,0.42305]
[1726597456646,3.63083,2363.3,2363.1,0.42305]
[1726597456846,3.2078,2363.3,2363.2,0.42304]
[1726597457049,1.24241,2363.4,2363.2,0.42304]
[1726597457244,3.2078,2363.6,2363.4,0.42301]
[1726597457449,3.2078,2363.8,2363.6,0.42296]
[1726597457647,3.2078,2363.8,2363.5,3.3]
[1726597457648,0.8492,2363.9,2363.7,0.42295]
[1726597457952,3.5985,2364.1,2363.7,3.3]
[1726597458151,3.5985,2364.1,2363.8,0.42293]
[1726597458152,4.02139,2364.1,2363.8,0.42293]
[1726597458353,3.5985,2364.1,2363.8,0.42293]
[1726597458657,3.5985,2364.1,2363.7,3.3]
[1726597458658,3.2078,2364.1,2363.9,0.42292]
[1726597459354,3.2078,2364.1,2363.8,0.82983]
[1726597459557,3.2078,2364.1,2363.9,0.42292]
[1726597460258,3.2078,2364.1,2364.0,0.4229]
[1726597460660,3.2078,2364.1,2363.9,0.42291]
[1726597461751,3.2078,2364.1,2364.0,0.4229]
[1726597462561,5.27897461,2364.5,2364.0,3.72289]
[1726597462760,0.42286,2364.3,2364.1,0.424]
[1726597463059,3.2078,2364.2,2364.1,0.424]
[1726597463552,3.2078,2364.2,2364.1,0.84688]
[1726597465753,0.42285,2364.3,2364.1,0.84688]
[1726597466153,0.42284,2364.4,2364.1,0.424]
[1726597466458,0.8269,2364.6,2364.2,3.3]
[1726597466757,3.5955,2364.8,2364.5,3.3]
[1726597466956,4.01826,2364.8,2364.7,0.42278]
[1726597467157,3.5955,2364.8,2364.7,0.42278]
[1726597467960,4.01826,2364.8,2364.7,0.42278]
[1726597468354,0.42278,2364.7,2364.6,0.42278]
[1726597468651,3.5955,2364.8,2364.7,0.42278]
[1726597468652,4.01827,2364.8,2364.7,0.42278]
[1726597471652,0.42278,2364.7,2364.6,0.42278]
[1726597472859,4.01827,2364.8,2364.7,0.42278]
[1726597473060,0.3961,2364.9,2364.8,0.42276]
[1726597473356,0.42273,2365.0,2364.9,0.42274]
[1726597473673,0.7911,2365.1,2365.0,0.42272]
[1726597473867,0.7911,2365.1,2364.9,3.3]
[1726597473868,0.42268,2365.3,2364.9,3.3]
[1726597474160,0.42268,2365.3,2365.2,3.72269]
[1726597474365,0.42268,2365.3,2365.2,3.3]
[1726597474661,0.3958,2365.4,2365.2,3.3]
[1726597474962,0.42266,2365.4,2365.2,3.72267]
[1726597475458,3.635,2365.5,2365.4,0.42265]
[1726597476055,3.2078,2365.5,2365.4,3.72265]
[1726597476760,4.05307,2365.9,2365.7,0.42259]
[1726597476969,3.6305,2365.9,2365.7,3.72259]
[1726597477151,6.24448342,2365.9,2365.7,3.72259]
[1726597477352,1.63592854,2365.8,2365.7,3.3]
[1726597477664,1.63593877,2365.8,2365.7,3.3]
[1726597477867,5.82192342,2365.9,2365.5,0.82703]
[1726597478162,1.63588546,2365.7,2365.5,0.82702]
[1726597478354,2.05847546,2365.8,2365.5,0.82702]
[1726597478959,2.05847546,2365.8,2365.6,0.42261]
[1726597479267,1.63588546,2365.8,2365.7,0.4226]
[1726597479461,5.26638546,2365.9,2365.8,0.42258]
[1726597479662,3.6305,2365.9,2365.8,0.42258]
[1726597480560,3.6305,2365.9,2365.7,3.3]
[1726597480561,4.05306,2365.9,2365.7,3.3]
[1726597480758,4.05306,2365.9,2365.7,3.72259]
[1726597481359,4.05306,2365.9,2365.8,0.42258]
[1726597482056,4.05306,2365.9,2365.3,3.3]
[1726597482057,7.8577,2365.9,2365.3,3.3]
[1726597482258,0.42264,2365.5,2365.4,0.42264]